bitfinex/quotes_ETHUSD_20240819
["timestamp","ask_amount","ask_price","bid_price","bid_amount"]
[1724030179929,2.407,2625.7,2625.1,3.80925]
[1724030180171,6.21551,2625.7,2625.1,3.80925]
[1724030180762,2.407,2625.7,2625.1,3.80925]
[1724030181267,2.407,2625.7,2625.1,4.190175]
[1724030181882,2.2581,2626.1,2625.5,3.80879]
[1724030182059,2.2581,2626.1,2625.6,3.80861]
[1724030182262,2.2581,2626.1,2625.5,3.80879]
[1724030182263,2.2581,2626.1,2625.7,3.80848]
[1724030182574,2.2581,2626.1,2625.5,4.189559]
[1724030182889,2.2581,2626.1,2625.5,7.61739]
[1724030183175,2.2581,2626.1,2625.5,3.80868]
[1724030183861,6.06611,2626.1,2625.5,3.80868]
[1724030184159,3.80812,2626.0,2625.2,3.0]
[1724030184365,3.918,2626.6,2625.1,3.80926]
[1724030184366,3.80845,2625.8,2625.1,3.80926]
[1724030184545,3.80842,2625.8,2625.1,3.80935]
[1724030184880,3.80867,2625.6,2625.1,3.80935]
[1724030185434,3.80867,2625.6,2624.9,6.80956]
[1724030185643,3.80867,2625.6,2625.0,3.0]
[1724030186074,3.80867,2625.6,2625.0,6.80946]
[1724030186283,3.80867,2625.6,2625.1,3.80937]
[1724030186658,3.80867,2625.6,2624.7,3.918]
[1724030186659,4.6691847,2625.6,2624.7,3.80989]
[1724030186863,3.80919,2625.3,2624.8,3.0]
[1724030187190,2.2732,2624.8,2624.2,3.81068]
[1724030187493,6.08302,2624.8,2624.2,3.81068]
[1724030187671,2.2732,2624.8,2623.9,4.36171107]
[1724030187840,3.81018,2624.6,2623.9,4.36171107]
[1724030188197,6.08309,2624.8,2624.1,3.8108]
[1724030188383,2.2732,2624.8,2624.3,3.81044]
[1724030188541,2.2732,2624.8,2624.4,3.81037]
[1724030188743,2.2732,2624.8,2624.3,3.81044]
[1724030189137,2.2732,2624.8,2624.4,3.81035]
[1724030189338,2.2732,2624.8,2624.3,3.81044]
[1724030189641,2.2732,2624.8,2624.3,7.62089]
[1724030189834,2.2732,2624.8,2624.4,3.81038]
[1724030190783,7.29,2625.0,2624.6,3.81009]
[1724030190940,7.29,2625.0,2624.6,7.62001]
[1724030191303,7.29,2625.0,2624.6,3.81]
[1724030191630,7.29,2625.0,2624.6,7.62001]
[1724030191835,7.29,2625.0,2624.7,3.80993]
[1724030192062,7.29,2625.0,2624.8,3.8098]
[1724030192280,2.261,2625.2,2624.8,3.8098]
[1724030193397,2.261,2625.2,2624.8,3.80972]
[1724030193687,2.261,2625.2,2624.9,3.80964]
[1724030194040,2.261,2625.2,2624.9,3.80966]
[1724030195451,2.261,2625.2,2624.9,4.571597]
[1724030195653,3.8087,2625.6,2624.9,4.571597]
[1724030195654,6.19778,2625.5,2624.9,4.571597]
[1724030195868,3.80894,2625.4,2624.8,3.80971]
[1724030196582,3.80894,2625.4,2624.8,7.61943]
[1724030197587,3.80894,2625.4,2624.8,3.80971]
[1724030197744,3.80894,2625.4,2624.7,3.80992]
[1724030197944,0.619784,2625.3,2624.6,3.81001]
[1724030198582,2.2926,2625.2,2624.6,3.81001]
[1724030198794,6.10184,2625.2,2624.6,3.81001]
[1724030199400,6.10184,2625.2,2624.6,7.62002]
[1724030199748,3.3456564,2625.2,2624.4,3.81032]
[1724030199983,2.2926,2625.2,2624.4,3.81032]
[1724030200298,2.2926,2625.2,2624.2,2.4406]
[1724030200299,3.80981,2624.8,2624.2,3.81058]
[1724030200505,2.3522,2624.8,2624.3,3.0]
[1724030200984,3.81004,2624.7,2624.3,3.0]
[1724030201196,3.81004,2624.7,2624.2,3.81065]
[1724030201375,6.16201,2624.8,2624.2,3.81058]
[1724030201542,2.3522,2624.8,2624.2,3.81058]
[1724030201740,2.3522,2624.8,2624.3,3.81052]
[1724030201961,3.80945,2625.1,2624.5,3.81021]
[1724030202173,2.3555,2625.1,2624.6,3.81007]
[1724030202356,2.3555,2625.1,2624.5,3.81021]
[1724030202357,6.16487,2625.1,2624.5,3.81016]
[1724030202560,3.80961,2625.0,2624.2,4.59766481]
[1724030202790,3.80961,2625.0,2624.4,7.62069]
[1724030202992,2.3555,2625.1,2624.4,3.8103]
[1724030203293,2.3555,2625.1,2624.7,3.80993]
[1724030203507,6.16365,2625.4,2624.8,3.80968]
[1724030203787,7.89458808,2625.4,2624.8,3.80968]
[1724030204853,6.16365,2625.4,2624.8,3.80968]
[1724030205299,2.3547,2625.4,2624.5,6.12639]
[1724030205597,4.425522,2625.3,2624.7,3.80987]
[1724030205964,4.425522,2625.3,2624.7,7.61974]
[1724030206172,3.80917,2625.3,2624.7,3.80987]
[1724030206508,3.80917,2625.3,2624.6,3.8101]
[1724030207350,0.41980755,2625.2,2624.6,3.8101]
[1724030207551,3.80917,2625.3,2624.6,3.8101]
[1724030207749,3.80939,2625.1,2624.6,3.8101]
[1724030208770,3.80917,2625.3,2624.8,3.8098]
[1724030209300,3.80917,2625.3,2624.6,7.62007]
[1724030209595,3.80925,2625.2,2624.6,3.80997]
[1724030210405,3.80925,2625.2,2624.6,7.61998]
[1724030210587,3.80925,2625.2,2624.6,7.61999]
[1724030210812,4.806445,2625.3,2624.6,3.80997]
[1724030210995,4.5254345,2625.2,2624.6,3.80997]
[1724030211210,3.80938,2625.1,2624.6,3.80997]
[1724030211640,0.7161145,2625.2,2624.6,7.61995]
[1724030211817,2.3547,2625.4,2624.7,3.80988]
[1724030212016,0.41977987,2625.3,2624.7,3.80988]
[1724030212214,6.16373,2625.4,2624.8,3.80978]
[1724030212394,0.41978174,2625.3,2624.8,3.80978]
[1724030212731,3.80926,2625.2,2624.7,3.80988]
[1724030212942,3.80926,2625.2,2624.3,0.75978748]
[1724030212943,3.8096,2625.0,2624.3,3.81044]
[1724030213092,6.21148,2625.1,2624.4,3.81029]
[1724030213291,6.21148,2625.1,2624.5,3.81013]
[1724030213787,3.80976,2624.9,2624.4,3.81029]
[1724030214193,6.21156,2625.1,2624.5,3.8102]
[1724030214591,10.02103,2625.1,2624.5,3.8102]
[1724030214786,6.21156,2625.1,2624.5,3.8102]
[1724030214999,2.4021,2625.1,2624.6,3.81009]
[1724030215521,2.4021,2625.1,2624.6,7.62018]
[1724030215936,7.29,2625.2,2624.9,3.80963]
[1724030216918,7.29,2625.2,2624.7,7.61969]
[1724030217319,7.29,2625.2,2624.8,3.80978]
[1724030219167,3.80909,2625.3,2624.8,3.80978]
[1724030219344,0.41979665,2625.2,2624.8,3.80978]
[1724030219578,3.80909,2625.3,2624.8,3.80978]
[1724030219850,0.4197876,2625.2,2624.8,3.80978]
[1724030220022,3.80968,2624.9,2624.3,3.81046]
[1724030220225,6.0823,2625.1,2624.4,3.81036]
[1724030220438,0.41982149,2625.0,2624.5,3.81024]
[1724030220622,3.80952,2625.0,2624.4,0.83387422]
[1724030220830,3.80982,2624.8,2624.4,0.83387422]
[1724030221012,3.80982,2624.8,2623.9,0.79518886]
[1724030221013,3.81034,2624.5,2623.9,3.81104]
[1724030221214,3.81034,2624.5,2623.7,3.81128]
[1724030221215,3.81056,2624.3,2623.7,3.81128]
[1724030221528,2.2728,2624.4,2623.9,3.81109]
[1724030221857,2.2728,2624.4,2623.9,4.573327]
[1724030222368,9.5628,2624.7,2624.1,3.81072]
[1724030222529,0.41987965,2624.6,2624.3,3.81052]
[1724030222728,2.2728,2624.7,2624.3,0.381052]
[1724030222960,6.08277,2624.7,2624.1,7.62148]
[1724030223167,6.08277,2624.7,2624.1,4.817168]
[1724030223478,6.08277,2624.7,2624.2,3.81065]
[1724030224067,3.81051,2624.4,2623.7,10.62266]
[1724030224360,2.2728,2624.7,2623.7,6.81128]
[1724030224361,6.10584,2624.3,2623.7,6.81128]
[1724030224561,6.10584,2624.3,2623.8,5.101786]
[1724030224742,6.10584,2624.3,2623.9,3.0]
[1724030225348,2.2953,2624.3,2623.9,3.0]
[1724030225570,2.2953,2624.3,2623.9,4.1913066]
[1724030225747,2.2953,2624.3,2623.9,8.0023966]
[1724030225962,6.10584,2624.3,2623.9,4.1913066]
[1724030226125,2.2953,2624.3,2623.9,1.1913066]
[1724030226334,13.42503277,2624.7,2624.1,3.81073]
[1724030226532,7.29,2625.0,2624.3,3.8104]
[1724030226737,0.41985286,2624.9,2624.7,3.80991]
[1724030227016,7.29,2625.0,2624.7,4.571911]
[1724030227255,7.29,2625.0,2624.7,3.80991]
[1724030227621,7.29,2625.0,2624.7,3.80987]
[1724030228017,7.29,2625.0,2624.5,3.81016]
[1724030228214,7.29,2625.0,2624.7,3.80992]
[1724030228432,2.2953,2625.2,2624.8,3.80971]
[1724030228635,2.2953,2625.2,2624.7,3.80994]
[1724030228831,0.41978856,2625.1,2624.7,3.80994]
[1724030229065,6.10454,2625.2,2624.6,7.62003]
[1724030229360,0.41981389,2625.1,2624.6,3.81001]
[1724030229580,6.10454,2625.2,2624.6,3.81001]
[1724030229806,6.10454,2625.2,2624.2,3.81055]
[1724030229807,2.2953,2624.9,2624.2,3.81055]
[1724030229997,2.2953,2624.9,2624.3,3.0]
[1724030230172,0.41984584,2624.8,2624.3,3.0]
[1724030230386,0.41984584,2624.7,2624.3,3.0]
[1724030231161,3.80989,2624.8,2624.3,6.81052]
[1724030231398,2.2953,2624.9,2624.3,6.81052]
[1724030231606,0.41983322,2624.8,2624.5,3.81015]
[1724030231771,2.2953,2624.9,2624.4,3.81028]
[1724030231973,0.41981927,2624.8,2624.4,3.81028]
[1724030232175,2.2953,2624.9,2624.4,3.81028]
[1724030232461,2.98152541,2625.1,2624.6,3.80999]
[1724030232659,0.4198029,2625.0,2624.6,3.80999]
[1724030232862,0.4198029,2624.9,2624.6,3.80999]
[1724030233063,2.2564,2625.1,2624.7,3.80994]
[1724030233286,0.41979076,2625.0,2624.9,3.80966]
[1724030233508,0.41979076,2625.0,2624.7,3.80983]
[1724030233681,6.15925,2625.4,2624.8,0.4220939]
[1724030233877,6.15925,2625.4,2624.7,3.80983]
[1724030233878,1.14482547,2625.3,2624.7,3.80983]
[1724030234097,0.41976493,2625.2,2624.7,3.80983]
[1724030234284,0.41976493,2625.1,2624.7,7.6197]
[1724030234587,0.41976493,2625.1,2624.9,3.80966]
[1724030235005,0.41976493,2625.0,2624.9,3.80966]
[1724030235714,0.41976493,2625.2,2624.9,3.80966]
[1724030235918,0.41976493,2625.1,2624.9,3.80966]
[1724030236123,0.41976493,2625.0,2624.7,3.80983]
[1724030236273,2.34238447,2625.3,2624.7,3.80983]
[1724030236618,0.41978396,2625.2,2624.7,3.80983]
[1724030236913,0.41978396,2625.1,2624.7,3.80983]
[1724030237068,0.41978396,2625.0,2624.7,3.80983]
[1724030237272,1.57522399,2625.2,2624.7,3.80983]
[1724030237475,0.41977978,2625.1,2624.7,3.80983]
[1724030237676,0.41977978,2625.0,2624.7,3.80983]
[1724030237975,1.57522607,2625.2,2624.9,3.80966]
[1724030238172,0.41977726,2625.1,2624.9,3.80966]
[1724030238372,1.61732393,2625.3,2624.9,3.80966]
[1724030238373,0.41977726,2625.0,2624.9,7.61932]
[1724030238590,7.29,2625.5,2625.4,3.80894]
[1724030238931,7.70970448,2625.5,2625.3,7.618]
[1724030239219,7.29,2625.5,2625.3,3.809]
[1724030239800,7.29,2625.5,2625.1,7.61853]
[1724030239984,0.41972516,2625.4,2625.1,3.80924]
[1724030240190,7.29,2625.5,2625.2,3.80923]
[1724030240592,7.29,2625.5,2625.3,3.80899]
[1724030240871,7.29,2625.5,2625.2,3.80911]
[1724030241173,0.41972357,2625.4,2625.2,3.80911]
[1724030241379,7.29,2625.5,2625.2,3.80911]
[1724030241686,0.41972859,2625.4,2625.2,3.80911]
[1724030242019,7.29,2625.5,2625.2,3.80911]
[1724030242369,7.29,2625.5,2625.3,3.80901]
[1724030242571,7.29,2625.5,2625.2,3.80911]
[1724030242776,22.08083,2625.8,2625.2,3.80911]
[1724030243015,4.22821823,2625.7,2625.2,3.80911]
[1724030243221,0.41970823,2625.6,2625.2,3.80911]
[1724030243424,0.41970823,2625.6,2625.0,3.80943]
[1724030243717,3.8088,2625.5,2625.0,3.80943]
[1724030243875,0.41970823,2625.4,2625.0,3.80943]
[1724030244198,2.84960823,2625.4,2625.0,3.75943]
[1724030244401,2.4299,2625.4,2625.0,3.75943]
[1724030244590,0.41975444,2625.3,2624.9,6.80963]
[1724030244917,2.4299,2625.4,2624.9,6.80963]
[1724030245795,2.4299,2625.4,2625.0,3.80944]
[1724030247526,2.4299,2625.4,2624.8,3.80971]
[1724030247527,3.17764706,2625.4,2624.8,3.80971]
[1724030247703,3.80925,2625.2,2624.6,3.81001]
[1724030247887,6.07423,2625.0,2624.4,3.8103]
[1724030248091,0.41981674,2624.9,2624.4,3.81028]
[1724030248312,2.2646,2625.0,2624.7,3.80986]
[1724030248789,0.4198123,2624.9,2624.7,3.80986]
[1724030248996,2.2646,2625.0,2624.7,3.80986]
[1724030249718,2.2646,2625.0,2624.7,3.80985]
[1724030250038,2.49106,2625.0,2624.5,3.81016]
[1724030250244,0.41981428,2624.9,2624.4,3.81037]
[1724030250392,6.30068,2625.0,2624.4,3.81037]
[1724030250590,0.41982974,2624.9,2624.4,3.81037]
[1724030250932,6.30068,2625.0,2624.4,3.81037]
[1724030251086,1.0498914,2624.9,2624.3,3.81043]
[1724030251286,2.2646,2625.0,2624.3,3.81043]
[1724030251489,2.3794,2625.3,2624.8,3.8098]
[1724030251693,0.41977977,2625.2,2624.8,3.8098]
[1724030251927,0.41977977,2625.1,2624.6,3.81001]
[1724030252524,0.41977977,2625.1,2624.8,3.80979]
[1724030252728,3.727242,2625.3,2624.8,3.80979]
[1724030252892,1.30707544,2625.2,2624.8,3.80979]
[1724030253089,0.41978152,2625.1,2624.8,3.80979]
[1724030253335,0.88729392,2625.2,2624.8,3.80979]
[1724030253497,0.41978508,2625.1,2624.8,3.80979]
[1724030253706,0.41978508,2625.1,2624.6,7.62002]
[1724030253903,4.3129121,2625.1,2624.4,3.81026]
[1724030254094,3.8099,2624.8,2624.1,6.08518]
[1724030254321,0.41981206,2624.7,2624.3,3.81046]
[1724030254592,2.3794,2624.9,2624.3,3.81046]
[1724030254593,6.18907,2624.9,2624.3,3.81045]
[1724030254795,0.41984511,2624.8,2624.3,3.81045]
[1724030255035,6.94840667,2624.9,2624.3,3.81045]
[1724030255235,0.41984147,2624.8,2624.3,3.81045]
[1724030255396,6.94840667,2624.9,2624.3,3.81045]
[1724030255595,0.41984393,2624.8,2624.3,3.81045]
[1724030255903,6.94840667,2624.9,2624.3,3.81045]
[1724030256103,0.41984146,2624.8,2624.3,3.81045]
[1724030256440,6.94840667,2624.9,2624.3,7.6209]
[1724030256661,0.41983774,2624.8,2624.4,3.8103]
[1724030256795,3.13873667,2624.9,2624.4,3.8103]
[1724030257338,0.41983903,2624.8,2624.4,3.8103]
[1724030257519,6.18907,2624.9,2624.4,3.8103]
[1724030257697,0.41984006,2624.8,2624.3,7.62087]
[1724030257921,6.18907,2624.9,2624.3,7.62087]
[1724030258100,0.41984052,2624.8,2624.3,7.62087]
[1724030258310,2.2992,2625.2,2624.7,3.80987]
[1724030258639,3.86952537,2625.3,2624.9,3.80954]
[1724030258640,0.41982661,2625.1,2624.9,3.80954]
[1724030258861,6.10808,2625.5,2624.9,3.80954]
[1724030258998,0.4197573,2625.4,2624.9,7.61912]
[1724030259198,0.4197573,2625.3,2624.9,3.80954]
[1724030259395,2.2992,2625.5,2625.2,3.80923]
[1724030259686,6.07721,2625.7,2625.2,3.80923]
[1724030259810,0.81775691,2625.6,2625.2,3.80923]
[1724030260136,0.41973813,2625.5,2625.2,7.61837]
[1724030260345,0.39801878,2625.6,2625.2,7.61828]
[1724030260653,2.2687,2625.7,2625.2,3.80914]
[1724030260950,0.41971399,2625.6,2625.2,3.80914]
[1724030261254,0.41971399,2625.5,2625.2,3.80914]
[1724030261453,6.07725,2625.7,2625.2,3.80914]
[1724030261744,0.41972604,2625.6,2625.2,3.80914]
[1724030261972,7.0658,2625.7,2625.2,3.80914]
[1724030262105,0.41973227,2625.6,2625.2,3.80914]
[1724030262547,4.22839227,2625.6,2625.0,7.61886]
[1724030262752,7.0658,2625.7,2624.8,3.80967]
[1724030262753,1.1682855,2625.5,2624.8,3.80967]
[1724030262917,4.22881227,2625.4,2624.9,3.0]
[1724030263120,3.80908,2625.4,2624.9,3.0]
[1724030263301,0.4197686,2625.3,2624.9,3.0]
[1724030263505,3.80908,2625.4,2624.9,3.0]
[1724030263708,7.61778,2625.5,2624.9,3.0]
[1724030263929,0.41975789,2625.4,2624.9,3.0]
[1724030264155,3.80896,2625.4,2624.9,3.0]
[1724030264360,0.41976613,2625.3,2624.9,3.0]
[1724030264658,3.80896,2625.4,2624.9,3.0]
[1724030264847,8.22906419,2625.5,2624.9,6.80963]
[1724030265056,0.4197618,2625.4,2624.9,6.80963]
[1724030265256,4.42013419,2625.5,2624.9,6.80963]
[1724030265559,0.41975667,2625.4,2624.9,3.0]
[1724030265715,2.2687,2625.7,2624.9,3.0]
[1724030265911,2.29,2626.0,2625.2,2.2648]
[1724030266214,0.41971657,2625.9,2625.5,3.80879]
[1724030266559,9.68498864,2626.4,2626.0,3.80806]
[1724030266560,2.29,2626.4,2626.0,3.80806]
[1724030266761,2.82810483,2626.7,2626.3,3.80753]
[1724030266762,4.48672386,2626.7,2626.3,3.80753]
[1724030266969,0.41957295,2626.6,2626.3,3.80753]
[1724030267112,2.4909,2626.7,2626.3,3.80753]
[1724030267313,1.0493506,2626.6,2626.1,7.61565]
[1724030267540,0.629781,2626.6,2626.1,3.8078]
[1724030267758,0.3120681,2626.5,2625.9,3.80809]
[1724030267961,4.53899349,2626.5,2625.9,3.80809]
[1724030268164,0.41956539,2626.4,2625.9,3.80809]
[1724030269214,4.1194281,2626.5,2625.9,3.80809]
[1724030269414,0.3120681,2626.5,2625.9,3.80809]
[1724030269671,3.80734,2626.5,2625.9,3.80809]
[1724030270075,4.437001,2626.6,2625.5,3.80873]
[1724030270076,3.80768,2626.3,2625.5,3.80873]
[1724030270367,0.629781,2626.6,2625.3,3.80898]
[1724030270368,3.80823,2625.9,2625.3,3.80898]
[1724030270716,3.80793,2626.1,2625.5,3.80879]
[1724030270981,2.2742,2626.2,2625.5,3.80879]
[1724030271134,2.2742,2626.2,2625.7,3.80848]
[1724030271340,2.2742,2626.2,2625.7,3.80842]
[1724030271541,2.2742,2626.2,2625.8,3.80832]
[1724030271838,3.80768,2626.3,2625.8,3.80832]
[1724030272040,0.4196332,2626.2,2625.8,3.80832]
[1724030272263,0.65714132,2626.2,2625.7,3.80845]
[1724030273150,4.46494132,2626.2,2625.7,3.80845]
[1724030274075,4.46494132,2626.2,2625.6,2.2713]
[1724030274076,2.2875,2626.0,2625.4,3.80885]
[1724030274583,6.09565,2626.0,2625.4,3.80885]
[1724030275194,3.80822,2625.9,2625.4,3.80885]
[1724030275957,3.80838,2625.8,2625.3,3.80901]
[1724030276180,3.80838,2625.8,2625.1,13.00457]
[1724030276181,4.79879,2625.8,2625.1,13.00457]
[1724030276339,0.99041,2625.8,2625.2,3.0]
[1724030276538,0.99041,2625.8,2625.3,3.80899]
[1724030276968,0.99041,2625.8,2625.3,7.618]
[1724030277436,0.99041,2625.8,2625.4,3.80891]
[1724030277636,3.80822,2625.9,2625.4,3.80891]
[1724030278689,3.80822,2625.9,2625.2,3.0]
[1724030278897,3.80866,2625.6,2625.2,3.0]
[1724030279190,3.80855,2625.7,2625.0,3.80937]
[1724030279490,3.80853,2625.7,2625.0,3.80937]
[1724030279644,3.80884,2625.5,2624.8,3.80972]
[1724030280244,3.80884,2625.5,2624.9,3.80959]
[1724030280870,3.80884,2625.5,2625.0,3.80949]
[1724030281073,0.4437593,2625.4,2625.0,3.80949]
[1724030281269,0.4437593,2625.4,2624.8,7.6194]
[1724030281468,0.4437593,2625.4,2624.9,3.80965]
[1724030281469,2.3436,2625.3,2624.9,3.80965]
[1724030281672,0.27873593,2625.2,2624.7,3.80983]
[1724030281855,0.27873593,2625.2,2624.6,6.27931]
[1724030281856,0.27873593,2625.2,2624.8,3.80977]
[1724030282215,0.27873593,2625.2,2624.9,3.80966]
[1724030282885,0.27873593,2625.2,2624.8,3.80977]
[1724030283586,4.08797593,2625.2,2624.6,3.80996]
[1724030283788,1.02406659,2625.1,2624.6,3.80996]
[1724030284159,1.02406659,2625.1,2624.7,3.80994]
[1724030284391,1.02406659,2625.1,2624.8,3.80973]
[1724030284591,0.27873593,2625.2,2624.8,3.80973]
[1724030285588,0.4437593,2625.4,2624.9,3.80965]
[1724030286582,0.4437593,2625.4,2625.0,3.80951]
[1724030286809,7.29,2625.5,2625.3,7.61805]
[1724030287022,3.0,2626.0,2625.6,3.80864]
[1724030287023,7.33827418,2626.0,2625.6,3.80864]
[1724030287203,7.29,2626.0,2625.6,3.80864]
[1724030287414,8.26762,2626.0,2625.6,3.80864]
[1724030287722,7.29,2626.0,2625.7,3.80841]
[1724030287891,7.29,2626.0,2625.6,2.4655]
[1724030288076,7.29,2626.0,2625.5,3.8087]
[1724030288607,9.6759,2626.0,2625.3,6.27451]
[1724030288831,1.1098,2625.9,2625.3,3.809]
[1724030289107,1.1098,2625.9,2625.4,3.80882]
[1724030289512,1.1098,2625.9,2625.1,6.80923]
[1724030289692,1.459379,2625.8,2625.1,3.80923]
[1724030289920,3.80853,2625.7,2625.2,3.80922]
[1724030290122,0.5267909,2625.7,2625.2,3.80922]
[1724030290322,6.19462,2625.6,2624.9,7.61913]
[1724030290534,6.19462,2625.6,2624.5,4.43760444]
[1724030290535,3.80947,2625.1,2624.5,3.81015]
[1724030290676,3.80947,2625.1,2624.3,6.27592]
[1724030291025,3.80947,2625.1,2624.3,3.81042]
[1724030291026,3.80967,2624.9,2624.3,3.81042]
[1724030291582,0.619537,2625.0,2624.3,3.81042]
[1724030291775,0.619537,2625.0,2624.5,3.81022]
[1724030292240,0.619537,2625.0,2624.7,3.80992]
[1724030292394,2.2534,2625.4,2624.9,3.80956]
[1724030292719,3.15962,2625.4,2624.9,3.80956]
[1724030293016,6.96856,2625.4,2624.9,3.80956]
[1724030293240,6.96856,2625.4,2624.5,3.81015]
[1724030293241,3.80942,2625.1,2624.5,3.81015]
[1724030293407,0.380942,2625.0,2624.5,3.81015]
[1724030293785,2.3902,2624.9,2624.4,3.81037]
[1724030293980,2.3902,2624.9,2624.5,3.81023]
[1724030295121,3.0482562,2624.9,2624.5,3.81023]
[1724030295626,0.6580562,2624.9,2624.5,7.62038]
[1724030295827,3.80942,2625.1,2624.5,7.62038]
[1724030296013,0.04827418,2625.4,2624.4,3.81038]
[1724030296333,2.3902,2625.5,2625.0,3.80951]
[1724030296786,2.3902,2625.5,2625.0,3.80943]
[1724030297436,2.3902,2625.5,2624.7,2.3478]
[1724030297636,2.3902,2625.5,2625.2,3.80921]
[1724030297849,2.3902,2625.5,2625.0,3.80938]
[1724030297850,6.49071909,2625.5,2625.0,3.80938]
[1724030299522,6.49071909,2625.5,2624.8,3.80971]
[1724030299856,3.80913,2625.3,2624.4,3.81025]
[1724030300060,3.80913,2625.3,2624.6,3.80999]
[1724030300232,4.50021088,2625.3,2624.6,3.80999]
[1724030300559,4.50021088,2625.3,2624.5,2.4367]
[1724030300560,3.8094,2625.1,2624.5,6.24683]
[1724030301073,4.50021088,2625.3,2624.7,3.80995]
[1724030301259,1.46689776,2625.2,2624.7,3.80995]
[1724030301819,5.27613776,2625.2,2624.6,3.8101]
[1724030302067,5.27613776,2625.2,2624.6,7.62011]
[1724030302283,1.46689776,2625.2,2624.7,3.80994]
[1724030303472,5.27614776,2625.2,2624.7,3.80994]
[1724030303666,0.97763586,2625.1,2624.7,3.80994]
[1724030305312,4.78703586,2625.1,2624.5,6.24686]
[1724030305613,0.97763586,2625.1,2624.5,6.24686]
[1724030305818,1.46689776,2625.2,2624.5,3.061386]
[1724030306116,3.80909,2625.3,2624.7,3.80986]
[1724030306551,3.80909,2625.3,2624.2,6.919]
[1724030306552,3.80938,2625.1,2624.6,3.81005]
[1724030306680,3.80953,2625.0,2624.4,3.8103]
[1724030306874,4.59983642,2625.2,2624.2,5.2682]
[1724030306875,6.26001,2624.8,2624.3,3.81046]
[1724030307429,7.62,2624.7,2624.1,3.81071]
[1724030307725,3.80996,2624.7,2624.1,3.81071]
[1724030308402,2.4502,2624.8,2624.2,3.81064]
[1724030308788,2.4502,2624.8,2624.2,3.8106]
[1724030308789,6.26003,2624.8,2624.2,3.8106]
[1724030308984,0.7021841,2624.7,2624.2,3.8106]
[1724030309187,8.3222141,2624.7,2624.2,3.8106]
[1724030309432,4.5121641,2624.7,2624.1,3.81082]
[1724030310042,4.5121641,2624.7,2624.0,3.81084]
[1724030310349,4.5121641,2624.7,2623.6,7.6229]
[1724030310350,3.81082,2624.2,2623.6,7.6229]
[1724030310502,3.81069,2624.2,2623.6,3.81145]
[1724030311210,0.994853,2624.2,2623.7,3.81132]
[1724030311525,0.994853,2624.2,2623.7,3.81131]
[1724030311728,0.994853,2624.2,2623.6,3.81145]
[1724030311729,0.994853,2624.2,2623.8,3.81123]
[1724030311923,6.13759,2624.4,2623.8,3.81123]
[1724030312121,6.13759,2624.4,2623.8,7.62241]
[1724030312522,3.04363641,2624.6,2624.1,3.81081]
[1724030312835,6.15758,2624.6,2624.0,3.81095]
[1724030313594,2.3474,2624.6,2624.1,7.62154]
[1724030313824,2.3474,2624.6,2623.9,7.62203]
[1724030313994,0.61849548,2624.5,2624.0,3.81095]
[1724030314640,2.3474,2624.2,2623.7,3.81132]
[1724030315750,2.3474,2624.2,2623.5,3.81161]
[1724030315751,3.344267,2624.2,2623.5,3.81161]
[1724030316035,2.3474,2624.2,2623.5,3.81161]
[1724030316741,2.3474,2624.2,2623.7,3.81131]
[1724030316899,2.3474,2624.2,2623.7,8.003761]
[1724030317101,2.3474,2624.2,2623.7,3.81131]
[1724030317304,2.3474,2624.2,2623.7,7.62264]
[1724030317818,2.3474,2624.2,2623.8,3.81124]
[1724030318349,2.3474,2624.2,2623.9,3.81099]
[1724030320054,2.3474,2624.2,2623.9,7.62202]
[1724030320242,9.6743,2624.5,2623.9,3.81099]
[1724030320404,9.6743,2624.5,2624.1,3.81083]
[1724030320608,2.3843,2624.5,2624.1,3.81083]
[1724030321399,2.3843,2624.5,2624.0,3.81096]
[1724030321839,6.19455,2624.5,2624.0,3.81096]
[1724030322142,7.19776048,2624.5,2624.0,3.81096]
[1724030322340,7.19776048,2624.5,2623.9,3.81099]
[1724030322539,7.19776048,2624.5,2624.0,3.81095]
[1724030323928,3.38751048,2624.5,2624.1,3.81081]
[1724030324123,2.3843,2624.5,2624.1,3.81081]
[1724030325330,2.3843,2624.5,2624.2,3.81066]
[1724030325554,3.83755478,2624.7,2624.1,7.62147]
[1724030325555,2.4435,2624.6,2624.1,7.62147]
[1724030325757,2.4435,2624.6,2624.1,3.81073]
[1724030325963,2.4435,2624.6,2623.8,2.2903]
[1724030325964,9.7335,2625.2,2624.7,3.80995]
[1724030326144,2.4435,2625.2,2624.7,3.80987]
[1724030326324,3.10860691,2625.2,2624.7,3.80987]
[1724030326530,13.52457046,2625.5,2624.9,3.80965]
[1724030326843,9.6706,2625.5,2624.9,4.190615]
[1724030327050,9.6706,2625.5,2625.1,3.80936]
[1724030327930,13.47939,2625.5,2624.9,7.61916]
[1724030328277,1.347939,2625.4,2624.9,3.80958]
[1724030328475,3.80917,2625.3,2624.7,7.61969]
[1724030328679,0.5157109,2625.2,2624.7,7.61969]
[1724030328977,3.80917,2625.3,2624.7,7.61969]
[1724030329128,3.80917,2625.3,2624.8,3.8098]
[1724030330074,3.80917,2625.3,2624.6,3.81002]
[1724030330272,5.538035,2625.3,2624.6,3.81002]
[1724030330571,3.80947,2625.1,2624.5,3.8102]
[1724030330780,2.4179,2624.9,2624.4,3.81031]
[1724030331469,2.4179,2624.9,2624.5,3.81016]
[1724030331674,2.4179,2624.9,2624.6,3.81008]
[1724030331879,3.80947,2625.1,2624.6,3.81008]
[1724030332060,2.4179,2625.1,2624.7,3.80992]
[1724030332604,2.4179,2625.1,2624.5,3.81022]